Cogmind - Beta 16 @@@ ROGUE MODE // 2026.01.05 @ 00:56:38 Player: arsenico Result: Destroyed by D-53 Grenadier with Mini Grenade Launcher Performance ------------- Evolutions (0) 0 Regions Visited (2) 400 Robots Destroyed (31) 155 Value Destroyed (491) 491 Prototype IDs (3) 60 Alien Tech Used (0) 0 Bonus (0) 0 TOTAL SCORE: 1106 Bonus ------- None Cogmind --------- Core Integrity 0/250 Matter 278/300 Energy 78/100 System Corruption 2% Temperature Cool (0) Movement Treading (320) Ox2 Location -10/Mines Parts ------- > --- POWER (1) -------- (None) > --- PROPULSION (2) --- Light Treads > --- UTILITY (2) ------ High-capacity Storage Unit > --- WEAPON (2) ------- EM Shotgun > --- INVENTORY (20) --- Ion Engine Ion Engine Light Treads Light Treads High-capacity Battery (250) Visual Processing Unit Experimental Sensor Array Improved Terrain Scanner Seismic Detector Transport Network Coupler Utility Shielding EM Pulse Gun Light Assault Rifle Assault Cannon Rocket Launcher Mini Grenade Launcher Improved Datajack Plasma Cutter Heavy Mace Peak State ------------ > --- POWER ------------ Ion Engine > --- PROPULSION ------- Light Treads Light Treads > --- UTILITY ---------- High-capacity Storage Unit Improved Sensor Array > --- WEAPON ----------- EM Shotgun EM Shotgun > --- INVENTORY -------- Ion Engine Ion Engine Light Treads Light Treads Compact Wheel High-capacity Battery Visual Processing Unit Experimental Sensor Array Improved Terrain Scanner Seismic Detector Transport Network Coupler Utility Shielding EM Pulse Gun Light Assault Rifle Assault Cannon Rocket Launcher Mini Grenade Launcher Improved Datajack Plasma Cutter Heavy Mace [Rating: 15] Favorites ----------- Power Ion Engine Engine Ion Engine Propulsion Light Treads Treads Light Treads Utility High-capacity Storage Unit Device Improved Sensor Array Storage High-capacity Storage Unit Weapon EM Pulse Gun Energy Gun EM Pulse Gun Launcher Mini Grenade Launcher Special Weapon Plasma Cutter Special Melee Weapon Datajack Build | -11 -10 -10 ------- Run | Yrd Mat Min Slots Evolved . | . . . Power . | . . . Propulsion . | . . . Utility . | . . . Weapon . | . . . Parts Attached 17 | 6 8 3 Power 1 | 1 . . Engine 1 | 1 . . Core . | . . . Reactor . | . . . Propulsion 2 | 2 . . Treads 2 | 2 . . Leg . | . . . Wheel . | . . . Hover . | . . . Flight . | . . . Utility 5 | 1 2 2 Device 2 | . . 2 Storage 3 | 1 2 . Processor . | . . . Hackware . | . . . Protection . | . . . Artifact . | . . . Weapon 9 | 2 6 1 Energy Gun 6 | 2 4 . Energy Cannon . | . . . Ballistic Gun . | . . . Ballistic Cannon . | . . . Launcher 1 | . 1 . Special Weapon 1 | . 1 . Impact Weapon . | . . . Slashing Weapon . | . . . Piercing Weapon . | . . . Special Melee Weapon 1 | . . 1 Unidentified Prototypes . | . . . Parts Lost 1 | . . 1 Power 1 | . . 1 Propulsion . | . . . Utility . | . . . Weapon . | . . . Highest Loss Streak 1 | . . 1 To Critical Strikes . | . . . Average Backups 16 | 2 15 19 Power 1 | . 1 2 Propulsion 2 | 1 2 2 Utility 5 | . 5 6 Weapon 4 | . 4 5 Tool/Special . | . . . Unused Backups 22 | . 2 20 Power 2 | . . 2 Propulsion 4 | . 1 3 Utility 9 | . 1 8 Weapon 6 | . . 6 Tool/Special 1 | . . 1 Average Slot Usage (%) 99 | . 99 100 Engine 14 | . 14 14 Treads 28 | . 28 28 Device 4 | . . 13 Storage 23 | . 27 14 Energy Gun 24 | . 24 23 Launcher 1 | . . 4 Special Weapon 1 | . 2 . Peak Build Rating 15 | 6 11 15 Average Rating 9 | 5 8 12 On Entrance 5 | . 6 11 Avg Prop Armor Cover (%) . | . . . Naked Turns . | . . . Heaviest Build 71 | 14 71 71 Greatest Support 40 | 40 40 40 Greatest Overweight (x) 1 | . 1 1 Average Overweight (x) . | . . 1 Largest Inventory Capacity 20 | 8 20 20 Average Capacity 18 | 7 18 20 Most Carried 20 | 4 20 20 Average Carried 16 | 2 15 19 Final Capacity 20 | 8 20 20 Final Carried 20 | 4 20 19 Class Distribution -------------------- 100% | Mutant Dominant Class ---------------- Mutant | -10/Materials Mutant | -10/Mines Resources | -11 -10 -10 ----------- Run | Yrd Mat Min Matter Collected 430 | 253 129 48 Remotely . | . . . Salvage Created 745 | 68 591 86 Parts 63 | 11 44 8 Haulers Intercepted 2 | . 2 . Recyclers Shooed . | . . . Parts Field Recycled . | . . . Retrieved Matter . | . . . Parts Self-Destructed . | . . . Prevented . | . . . Parts Restored . | . . . Kills | -11 -10 -10 ------- Run | Yrd Mat Min Combat Hostiles Destroyed 15 | . 12 3 Guns 13 | . 10 3 AOE 2 | . 2 . Classes Destroyed 8 | 1 7 . Worker 4 | . 4 . Builder 2 | . 2 . Tunneler 4 | 4 . . Hauler 2 | . 2 . Operator 2 | . 2 . Watcher 2 | . 2 . Swarmer 8 | . 6 2 Grunt 7 | . 6 1 Best Kill Streak 5 | 2 5 2 Combat Bots Only 3 | . 3 2 Max Kills in Single Turn 4 | 1 4 1 Gunslinging . | . . . Exploded 2 | . 2 . Melee . | . . . Uniques/NPCs Destroyed . | . . . Combat | -11 -10 -10 -------- Run | Yrd Mat Min Hostile Shots Fired 55 | . 39 16 Missed 14 | . 12 2 Hits 41 | . 27 14 Projectile 41 | . 27 14 AOE 6 | . . 6 Critical Strikes 2 | . 1 1 Damage Taken 721 | . 342 379 Core 279 | . 98 181 Absorbed by Shields . | . . . Core Remaining (%) 100 | 100 . . Volleys Fired 67 | 12 45 10 Largest 2 | 1 2 2 Hottest 90 | 40 90 90 Shots Fired 109 | 12 84 13 Gun 102 | 12 77 13 Cannon . | . . . Launcher . | . . . Special 7 | . 7 . Kinetic . | . . . Thermal 7 | . 7 . Explosive . | . . . Electromagnetic 102 | 12 77 13 Robot Hit Streak 8 | 3 6 8 Robot Miss Streak 5 | 1 5 3 Penetration Max . | . . . Secondary Targets 1 | . . 1 Max Gunslinging Chain 1 | . . 1 Shots Hit Robots 62 | 8 43 11 Core Hits 43 | 5 33 5 Critical Kills . | . . . Critical Parts Destroyed . | . . . Critical Strikes 1 | . 1 . Corrupt 1 | . 1 . Melee Attacks 1 | . . 1 Impact . | . . . Slashing . | . . . Piercing . | . . . Sneak Attacks 1 | . . 1 Combat Hostiles . | . . . Follow-up Attacks . | . . . Damage Inflicted 1573 | 195 1235 143 Guns 838 | 117 592 129 Cannons . | . . . Explosions 664 | 75 589 . Melee . | . . . Ramming 25 | 3 8 14 Kinetic . | . . . Thermal 346 | 75 271 . Explosive 364 | . 364 . Electromagnetic 838 | 117 592 129 Impact . | . . . Slashing . | . . . Piercing . | . . . Highest Corruption 2 | . 2 2 Average Corruption 1 | . 1 2 Corruption Purged . | . . . Corruption Blocked . | . . . Effects 33 | . 23 10 Message Errors 7 | . 5 2 Matter Fused 9 | . 8 1 Heat Flow Errors 3 | . 1 2 Energy Discharges 8 | . 4 4 Data Loss (minor) 3 | . 2 1 Data Loss (major) 2 | . 2 . Misfires 1 | . 1 . Overload Shots . | . . . Overflow Damage 12 | 8 4 . Projectiles . | . . . Explosions 12 | 8 4 . Melee . | . . . Knockbacks . | . . . Impact . | . . . Kinetic . | . . . Secondary . | . . . Self-Inflicted Damage 88 | . 88 . Shots 1 | . 1 . Rammed 8 | 2 4 2 Targets Rammed 8 | 2 4 2 Kicked . | . . . Crushed . | . . . Highest Temperature 267 | . 163 267 Average Temperature 54 | . 42 86 Received Heat Transfer 138 | . 66 72 Siege Activations . | . . . Martial Activations . | . . . Shielding Activations . | . . . Robots Disrupted . | . . . Combat Hostiles . | . . . Robots Corrupted . | . . . Combat Hostiles . | . . . Parts Fried 5 | . 4 1 Impact Corruptions . | . . . Robots Melted . | . . . Combat Hostiles . | . . . Parts Melted . | . . . Heat Transferred 548 | 150 398 . Parts Sabotaged . | . . . Parts Stolen . | . . . Parts Stripped . | . . . Power Chain Reactions 4 | 1 3 . Alert | -11 -10 -10 ------- Run | Yrd Mat Min Maximum Alert Level . | . . . Low Security (%) 100 | 100 100 100 Level 1 . | . . . Level 2 . | . . . Level 3 . | . . . Level 4 . | . . . Level 5 . | . . . High Security . | . . . Max Security . | . . . Peak Influence 100 | 5 100 40 Initial 3 | . 3 . Average 17 | 1 24 3 Influence Increases 606 | 20 476 110 Destroy 0b10 Robot/C 300 | . 240 60 Destroy 0b10 Robot/NC 80 | 20 60 . Destroy Leader 68 | . 58 10 Trap Triggered on 0b10 10 | . . 10 Successful Hack 19 | . 19 . Disable Machine 75 | . 75 . Destroy Structure 9 | . 9 . Lose Combat Pursuer 45 | . 15 30 Influence Decreases 594 | 15 479 100 Entered New Map 4 | . 2 2 Time Decay 580 | 15 477 88 Lost Part 10 | . . 10 Squads Dispatched 4 | . 3 1 Investigation 2 | . 1 1 Extermination . | . . . Reinforcement 2 | . 2 . Assault . | . . . Garrison . | . . . Intercept . | . . . Searches Triggered . | . . . Construction Impeded . | . . . Haulers Reinforced . | . . . Active Scanning Responses . | . . . Cargo Convoy Interrupts . | . . . Stealth | -11 -10 -10 --------- Run | Yrd Mat Min Distress Signals . | . . . Communications Jammed . | . . . Distress Signals . | . . . Times Spotted 26 | . 20 6 Peak Tracking Total 4 | . 4 2 Tactical Retreats 2 | . 1 1 Traps | -11 -10 -10 ------- Run | Yrd Mat Min Traps Triggered 3 | . 3 . Indirectly . | . . . Trap Hack Attempts . | . . . Triggered . | . . . Disarmed . | . . . Reprogrammed . | . . . Reused 1 | . . 1 Traps Extracted . | . . . Installed 2 | . . 2 Triggered 1 | . . 1 Most Traps Carried 1 | . . 1 Machines | -11 -10 -10 ---------- Run | Yrd Mat Min Machines Disabled 5 | . 5 . Max in Single Turn 1 | . 1 . Machines Repaired . | . . . Machines Dismantled 3 | . 3 . Machines Sabotaged . | . . . Overloaded Fab Kills . | . . . Hacking | -11 -10 -10 --------- Run | Yrd Mat Min Machines Accessed 8 | . 7 1 Terminals 7 | . 7 . Fabricators . | . . . Repair Stations . | . . . Recycling Units . | . . . Scanalyzers . | . . . Garrison Access . | . . . Total Hacks 12 | . 11 1 Successful 7 | . 6 1 Failed 5 | . 5 . Catastrophic . | . . . Database Lockouts . | . . . Manual 8 | . 8 . Terminals 11 | . 11 . Fabricators . | . . . Repair Stations . | . . . Recycling Units . | . . . Scanalyzers . | . . . Garrison Access . | . . . Terminal Hacks 7 | . 6 1 Robot Analysis 2 | . 2 . Prototype ID Bank 2 | . 2 . Open Door 1 | . . 1 Level Access Points 1 | . 1 . Hauler Manifests 1 | . 1 . Fabricator Hacks . | . . . Repair Station Hacks . | . . . Recycling Unit Hacks . | . . . Scanalyzer . | . . . Garrison Access Hacks . | . . . Unauthorized Hacks . | . . . Terminals . | . . . Fabricators . | . . . Repair Stations . | . . . Recycling Units . | . . . Scanalyzers . | . . . Garrison Access . | . . . Data Cores Recovered . | . . . Used . | . . . Hacking Detections 3 | . 3 . Full Trace Events . | . . . Feedback Events . | . . . Feedback Blocked . | . . . Robot Schematics Acquired . | . . . Robots Built . | . . . Authchips . | . . . Time . | . . . Total Robot Build Rating . | . . . Part Schematics Acquired . | . . . Parts Built . | . . . Authchips . | . . . Time . | . . . Total Part Build Rating . | . . . Part Studies Acquired . | . . . Parts Repaired . | . . . Time . | . . . Parts Recycled . | . . . Recycled Matter . | . . . Retrieved Matter . | . . . Retrieved Components . | . . . Parts Scanalyzed . | . . . Part Schematics Acquired . | . . . Parts Damaged . | . . . Bothacking | -11 -10 -10 ------------ Run | Yrd Mat Min Used RIF Installer . | . . . Robots Hacked . | . . . Non-combat . | . . . Combat . | . . . Robot Hacks Applied . | . . . Relay Couplers Released . | . . . Fabnet Peak Effective % . | . . . Robots Rewired . | . . . Allies Hacked . | . . . Hacks Repelled . | . . . Allies | -11 -10 -10 -------- Run | Yrd Mat Min Total Allies . | . . . Largest Group . | . . . Highest-Rated Group . | . . . Highest-Rated Ally . | . . . Total Orders . | . . . Ally Attacks . | . . . Total Damage . | . . . Kills . | . . . Allies Corrupted . | . . . Allies Melted . | . . . Intel | -11 -10 -10 ------- Run | Yrd Mat Min Active Infowar (turns) 1045 | . . 1045 Sensors 1045 | . . 1045 Robot Analysis Total 2 | . 2 . Derelict Logs Recovered 1 | . . 1 Drone Launches . | . . . Drone Recoveries . | . . . Exploration | -11 -10 -10 ------------- Run | Yrd Mat Min Turns Passed 3465 | 159 2244 1062 Spaces Moved 1406 | 80 912 414 Core 10 | 10 . . Treads 1396 | 70 912 414 Legs . | . . . Wheels . | . . . Hover . | . . . Flight . | . . . Fastest Speed 50 | 50 160 240 Average Speed 217 | 146 213 240 Slowest Speed 240 | 160 240 240 Overloaded Moves . | . . . Propulsion Burnouts . | . . . Robots Hopped . | . . . Potential Cave-ins . | . . . Cave-ins Triggered . | . . . Exploration Rate (%) 51 | 4 84 65 Regions Visited 2 Branch Regions 1 Pre-discovered Areas 1 | . . 1 Known Exits Taken . | . . . Unknown Exits Taken 2 | 1 1 . Scrap Searched 1 | . . 1 Spaces Dug . | . . . Terrain Destroyed 15 | 5 10 . Melee . | . . . Projectile . | . . . AOE 15 | 5 10 . Terrain Rammed . | . . . Walls Destroyed . | . . . Machines Disabled . | . . . Actions | -11 -10 -10 --------- Run | Yrd Mat Min Total 1622 | 109 1038 475 Wait 21 | . 4 17 Move 1404 | 79 911 414 Hop . | . . . Pick Up 42 | 10 22 10 Fast Attach . | . . . Attach 9 | 6 1 2 Detach . | . . . Swap 10 | . 7 3 Drop 19 | . 5 14 Fire 67 | 12 45 10 Melee 1 | . . 1 Ram . | . . . Kick . | . . . Crush 8 | 2 4 2 Escape Stasis . | . . . Rewire . | . . . Trap 2 | . . 2 Miscellaneous 39 | . 39 . Route ------- -11/Scrapyard -10/Materials (discovered 5 exits: *Mat x3 / *Min / [*Sub]) -10/Mines History --------- Turn | Location | Event 4 | -11/Scrapyard | Discovered new exit (range 16) 160 | -11/Scrapyard | Entered Materials 161 | -10/Materials | Met a group of wandering Federalists 248 | -10/Materials | Discovered new exit (range 16) 264 | -10/Materials | Discovered new exit (range 12) 300 | -10/Materials | Build established: Mutant 620 | -10/Materials | Discovered new exit (range 5) 942 | -10/Materials | Discovered new exit (range 6) 1361 | -10/Materials | Identified exit to Materials 1614 | -10/Materials | Discovered new exit (range 8) 2404 | -10/Materials | Entered Mines 2405 | -10/Mines | Assembled infested the area 2410 | -10/Mines | Assisted by a Guerilla fighting off Assembled 2735 | -10/Mines | Found a damaged Exp. Sensor Array with a note attached 2739 | -10/Mines | Found Prototype Device 2911 | -10/Mines | Met a Derelict shopkeep closing up shop 3072 | -10/Mines | Learned location of Storage (-9) 3139 | -10/Mines | Received a Rocket Launcher from a helpful Derelict 3180 | -10/Mines | Found a hidden stash of uninstalled traps 3461 | -10/Mines | Core integrity fell below 50% 3464 | -10/Mines | Core integrity fell below 20% 3466 | -10/Mines | Destroyed by D-53 Grenadier with Mini Grenade Launcher Last Messages --------------- Dropped EM Pulse Gun. Acquired Mni. Grenade Launcher. A stash of uninstalled traps is collected here! Dropped Com. Wheel. Acquired EMP Trap. System corrupted: Energy discharge (-70). System corrupted: Energy discharge (-62). Dropped EMP Trap. Installed EMP Trap. &SQ